Cogmind - Beta 13 @@@ ROGUE MODE // 2024.06.13 @ 01:40:37 Player: MarKhan Result: Destroyed by RQ-Q8W(R) with Subdweller Machine Gun Performance ------------- Evolutions (0) 0 Regions Visited (2) 400 Robots Destroyed (33) 165 Value Destroyed (885) 885 Prototype IDs (1) 20 Alien Tech Used (0) 0 Bonus (-162) -162 TOTAL SCORE: 1308 Bonus ------- Friendly Fire -162 Cogmind --------- Core Integrity 0/250 Matter 255/300 Energy 275/280 System Corruption 1% Temperature Cool (0) Movement Treading (260) Ox1 Location -10/Subcaves Parts ------- > --- POWER (1) -------- Heavy Ion Engine > --- PROPULSION (2) --- Spiked Treads > --- UTILITY (2) ------ Large Storage Unit Seismic Detector > --- WEAPON (2) ------- Datajack Mining Claw > --- INVENTORY (15) --- Ion Engine Light Ion Engine Improved Heat Sink High-capacity Battery (250) High-capacity Battery (250) Tractor Beam EM Pulse Gun Riot Gun Small Laser Particle Gun Assault Rifle Battle Rifle Barrage Gun Barrage Gun Peak State ------------ > --- POWER ------------ Heavy Ion Engine > --- PROPULSION ------- Subdweller Monowheel Subdweller Monowheel > --- UTILITY ---------- Large Storage Unit Seismic Detector > --- WEAPON ----------- Particle Gun Barrage Gun > --- INVENTORY -------- Ion Engine Light Ion Engine Spiked Treads Improved Heat Sink High-capacity Battery High-capacity Battery Tractor Beam EM Pulse Gun Small Laser Assault Rifle Battle Rifle Barrage Gun Datajack Mining Claw [Rating: 16] Favorites ----------- Power Heavy Ion Engine Engine Heavy Ion Engine Propulsion Light Treads Treads Light Treads Wheel Subdweller Monowheel Utility Large Storage Unit Device Improved Terrain Scanner Storage Large Storage Unit Weapon EM Pulse Gun Energy Gun EM Pulse Gun Ballistic Gun Barrage Gun Launcher Grenade Launcher Special Weapon Mining Laser Slashing Weapon Mining Claw Special Melee Weapon Datajack Build | -11 -10 -10 ------- Run | Yrd Mat Sub Slots Evolved . | . . . Power . | . . . Propulsion . | . . . Utility . | . . . Weapon . | . . . Parts Attached 37 | 7 11 19 Power 4 | 1 2 1 Engine 4 | 1 2 1 Core . | . . . Reactor . | . . . Propulsion 8 | 2 . 6 Treads 4 | 2 . 2 Leg . | . . . Wheel 4 | . . 4 Hover . | . . . Flight . | . . . Utility 9 | 2 2 5 Device 7 | 1 1 5 Storage 2 | 1 1 . Processor . | . . . Hackware . | . . . Protection . | . . . Artifact . | . . . Weapon 16 | 2 7 7 Energy Gun 5 | 1 2 2 Energy Cannon . | . . . Ballistic Gun 3 | 1 . 2 Ballistic Cannon . | . . . Launcher 2 | . 1 1 Special Weapon 1 | . 1 . Impact Weapon . | . . . Slashing Weapon 3 | . 2 1 Piercing Weapon . | . . . Special Melee Weapon 2 | . 1 1 Unidentified Prototypes 1 | . 1 . Corrupted Parts 1 | . 1 . System Corruption 1 | . 1 . Parts Lost 6 | . 1 5 Power 1 | . . 1 Propulsion 2 | . . 2 Utility 2 | . 1 1 Weapon 1 | . . 1 Highest Loss Streak 5 | . 1 5 To Critical Strikes . | . . . Average Slot Usage (%) 93 | . 99 87 Engine 13 | . 13 13 Treads 21 | . 28 13 Wheel 2 | . . 4 Device 13 | . 13 12 Storage 14 | . 14 14 Energy Gun 13 | . 12 13 Ballistic Gun 4 | . . 8 Launcher 2 | . 2 1 Special Weapon 1 | . 2 . Slashing Weapon 5 | . 6 3 Special Melee Weapon 1 | . 1 1 Naked Turns . | . . . Heaviest Build 36 | 15 33 36 Greatest Support 40 | 40 40 40 Greatest Overweight (x) 8 | . . 8 Average Overweight (x) . | . . . Largest Inventory Capacity 15 | 8 15 15 Average Capacity 13 | 7 12 15 Most Carried 15 | 5 15 15 Average Carried 12 | 2 10 14 Final Capacity 15 | 8 15 15 Final Carried 15 | 5 15 14 Class Distribution -------------------- 94% | Mutant 5% | Scavenger-Mutant Dominant Class ---------------- Mutant | -10/Materials Mutant | -10/Subcaves Resources | -11 -10 -10 ----------- Run | Yrd Mat Sub Matter Collected 878 | 285 183 410 Remotely 38 | . . 38 Salvage Created 1036 | 119 467 450 Parts 69 | 8 32 29 Haulers Intercepted 1 | . 1 . Recyclers Shooed . | . . . Parts Field Recycled . | . . . Retrieved Matter . | . . . Parts Self-Destructed 10 | . . 10 Prevented . | . . . Kills | -11 -10 -10 ------- Run | Yrd Mat Sub Combat Hostiles Destroyed 24 | . 12 12 Melee 3 | . 3 . Guns 14 | . 5 9 AOE 7 | . 4 3 Classes Destroyed 9 | 2 5 2 Tunneler 1 | 1 . . Hauler 1 | . 1 . Recycler 1 | 1 . . Operator 3 | . 2 1 Turret 2 | . . 2 Watcher 1 | . 1 . Swarmer 7 | . 3 4 Grunt 9 | . 9 . Subdweller 8 | . . 8 Best Kill Streak 6 | 1 6 4 Combat Bots Only 4 | . 3 4 Max Kills in Single Turn 2 | 1 2 2 Gunslinging . | . . . Exploded 2 | . 2 2 Melee 1 | . 1 . Uniques/NPCs Destroyed . | . . . Combat | -11 -10 -10 -------- Run | Yrd Mat Sub Hostile Shots Fired 171 | . 59 112 Missed 66 | . 25 41 Damage Taken 1503 | . 412 1091 Core 270 | . 61 209 Absorbed by Shields . | . . . Core Remaining (%) 100 | 100 . . Volleys Fired 95 | 6 40 49 Largest 2 | 2 2 2 Hottest 140 | 60 140 95 Shots Fired 153 | 12 54 87 Gun 123 | 12 31 80 Cannon . | . . . Launcher 15 | . 8 7 Special 15 | . 15 . Kinetic 47 | 6 . 41 Thermal 30 | . 15 15 Explosive 15 | . 8 7 Electromagnetic 61 | 6 31 24 Robot Hit Streak 15 | 4 4 15 Robot Miss Streak 4 | 2 3 4 Penetration Max . | . . . Secondary Targets 2 | . . 2 Max Gunslinging Chain 1 | . . 1 Shots Hit Robots 113 | 7 33 73 Core Hits 65 | 3 23 39 Critical Kills . | . . . Critical Parts Destroyed 1 | . . 1 Critical Strikes 1 | . . 1 Destroy 1 | . . 1 Melee Attacks 58 | . 38 20 Impact . | . . . Slashing 49 | . 37 12 Piercing . | . . . Sneak Attacks 3 | . 2 1 Combat Hostiles . | . . . Follow-up Attacks . | . . . Damage Inflicted 2935 | 92 1234 1609 Guns 1328 | 92 306 930 Cannons . | . . . Explosions 1252 | . 573 679 Melee 355 | . 355 . Ramming . | . . . Kinetic 567 | 39 . 528 Thermal 280 | . 33 247 Explosive 1170 | . 540 630 Electromagnetic 563 | 53 306 204 Impact . | . . . Slashing 355 | . 355 . Piercing . | . . . Highest Corruption 1 | . 1 1 Average Corruption 1 | . 1 1 Corruption Purged . | . . . Corruption Blocked . | . . . Effects 18 | . . 18 Matter Fused 6 | . . 6 Heat Flow Errors 5 | . . 5 Energy Discharges 1 | . . 1 Data Loss (minor) 1 | . . 1 Data Loss (major) 2 | . . 2 Misfires 3 | . . 3 Overload Shots . | . . . Overflow Damage 50 | . 50 . Projectiles . | . . . Explosions 22 | . 22 . Melee 28 | . 28 . Knockbacks . | . . . Impact . | . . . Kinetic . | . . . Secondary . | . . . Self-Inflicted Damage 101 | . 40 61 Shots 5 | . 1 4 Rammed . | . . . Targets Rammed . | . . . Kicked . | . . . Crushed . | . . . Highest Temperature 209 | . 102 209 Average Temperature 29 | . 23 41 Received Heat Transfer 450 | . 204 246 Siege Activations . | . . . Robots Corrupted . | . . . Combat Hostiles . | . . . Parts Fried . | . . . Impact Corruptions . | . . . Robots Melted . | . . . Combat Hostiles . | . . . Parts Melted . | . . . Heat Transferred 631 | . 50 581 Parts Sabotaged . | . . . Parts Stolen . | . . . Parts Stripped . | . . . Power Chain Reactions 2 | . 1 1 Alert | -11 -10 -10 ------- Run | Yrd Mat Sub Peak Influence 296 | 10 296 . Initial 6 | . 6 . Average 112 | 6 121 . Maximum Alert Level 1 | . 1 . Low Security (%) 86 | 100 85 . Level 1 13 | . 14 . Level 2 . | . . . Level 3 . | . . . Level 4 . | . . . Level 5 . | . . . High Security . | . . . Max Security . | . . . Squads Dispatched 4 | . 4 . Investigation . | . . . Extermination . | . . . Reinforcement 4 | . 4 . Assault . | . . . Garrison . | . . . Intercept . | . . . Searches Triggered . | . . . Construction Impeded . | . . . Haulers Reinforced . | . . . Active Scanning Responses . | . . . Cargo Convoy Interrupts . | . . . Stealth | -11 -10 -10 --------- Run | Yrd Mat Sub Distress Signals 4 | . 4 . Communications Jammed . | . . . Distress Signals . | . . . Times Spotted 75 | . 24 51 Peak Tracking Total 5 | . 4 5 Tactical Retreats 4 | . . 4 Traps | -11 -10 -10 ------- Run | Yrd Mat Sub Traps Triggered . | . . . Indirectly . | . . . Trap Hack Attempts . | . . . Triggered . | . . . Disarmed . | . . . Reprogrammed . | . . . Reused . | . . . Traps Extracted . | . . . Installed . | . . . Triggered . | . . . Machines | -11 -10 -10 ---------- Run | Yrd Mat Sub Machines Disabled 5 | . 4 1 Max in Single Turn 2 | . 2 1 Machines Repaired . | . . . Machines Dismantled . | . . . Machines Sabotaged . | . . . Overloaded Fab Kills . | . . . Hacking | -11 -10 -10 --------- Run | Yrd Mat Sub Machines Accessed 6 | . 6 . Terminals 5 | . 5 . Fabricators . | . . . Repair Stations . | . . . Recycling Units 1 | . 1 . Scanalyzers . | . . . Garrison Access . | . . . Total Hacks 18 | . 18 . Successful 12 | . 12 . Failed 6 | . 6 . Catastrophic 1 | . 1 . Database Lockouts . | . . . Manual 12 | . 12 . Terminals 16 | . 16 . Fabricators . | . . . Repair Stations . | . . . Recycling Units 2 | . 2 . Scanalyzers . | . . . Garrison Access . | . . . Terminal Hacks 4 | . 4 . Terminal Index 1 | . 1 . Alert Level 1 | . 1 . Locate Traps 1 | . 1 . Hauler Manifests 1 | . 1 . Fabricator Hacks . | . . . Repair Station Hacks . | . . . Recycling Unit Hacks 1 | . 1 . Report Inventory 1 | . 1 . Scanalyzer . | . . . Garrison Access Hacks . | . . . Unauthorized Hacks 7 | . 7 . Terminals 6 | . 6 . Assimilate 3 | . 3 . Botnet 2 | . 2 . Operators 1 | . 1 . Fabricators . | . . . Repair Stations . | . . . Recycling Units 1 | . 1 . Monitor 1 | . 1 . Scanalyzers . | . . . Garrison Access . | . . . Data Cores Recovered . | . . . Used . | . . . Hacking Detections 5 | . 5 . Full Trace Events . | . . . Feedback Events . | . . . Feedback Blocked . | . . . Robot Schematics Acquired . | . . . Robots Built . | . . . Authchips . | . . . Time . | . . . Total Robot Build Rating . | . . . Part Schematics Acquired . | . . . Parts Built . | . . . Authchips . | . . . Time . | . . . Total Part Build Rating . | . . . Parts Repaired . | . . . Time . | . . . Parts Recycled . | . . . Recycled Matter . | . . . Retrieved Matter . | . . . Retrieved Components . | . . . Parts Scanalyzed . | . . . Part Schematics Acquired . | . . . Parts Damaged . | . . . Bothacking | -11 -10 -10 ------------ Run | Yrd Mat Sub Used RIF Installer . | . . . Robots Hacked 2 | . 1 1 Non-combat . | . . . Combat 2 | . 1 1 Robot Hacks Applied 2 | . 1 1 parse_system 2 | . 1 1 Relay Couplers Released . | . . . Fabnet Peak Effective % . | . . . Robots Rewired . | . . . Allies Hacked . | . . . Hacks Repelled . | . . . Allies | -11 -10 -10 -------- Run | Yrd Mat Sub Total Allies 2 | . 2 . Largest Group 2 | . 2 1 Highest-Rated Group 20 | . 20 10 Highest-Rated Ally 10 | . 10 10 Total Orders 3 | . 3 . STAY 2 | . 2 . FOLLOW 1 | . 1 . Ally Attacks . | . . . Total Damage . | . . . Kills . | . . . Allies Corrupted . | . . . Allies Melted . | . . . Intel | -11 -10 -10 ------- Run | Yrd Mat Sub Robot Analysis Total . | . . . Derelict Logs Recovered 1 | . . 1 Drone Launches . | . . . Drone Recoveries . | . . . Exploration | -11 -10 -10 ------------- Run | Yrd Mat Sub Turns Passed 3439 | 141 1695 1603 Spaces Moved 1584 | 72 821 691 Core 18 | 6 . 12 Treads 1363 | 66 821 476 Legs . | . . . Wheels 203 | . . 203 Hover . | . . . Flight . | . . . Fastest Speed 50 | 50 160 110 Average Speed 176 | 150 160 197 Slowest Speed 450 | 160 160 450 Overloaded Moves . | . . . Propulsion Burnouts . | . . . Robots Hopped . | . . . Cave-ins Triggered . | . . . Exploration Rate (%) 44 | 4 84 45 Regions Visited 2 Branch Regions 1 Pre-discovered Areas . | . . . Known Exits Taken . | . . . Unknown Exits Taken 2 | 1 1 . Scrap Searched 1 | . . 1 Spaces Dug 24 | . 24 . Terrain Destroyed 98 | . 75 23 Melee 11 | . 11 . Projectile 14 | . 14 . AOE 73 | . 50 23 Terrain Rammed . | . . . Walls Destroyed . | . . . Machines Disabled . | . . . Actions | -11 -10 -10 --------- Run | Yrd Mat Sub Total 1948 | 89 1042 817 Wait 145 | . 120 25 Move 1582 | 71 820 691 Hop . | . . . Pick Up 20 | 5 9 6 Fast Attach 11 | 7 1 3 Attach 6 | . 1 5 Detach 3 | . 2 1 Swap 20 | . 9 11 Drop 8 | . 2 6 Fire 95 | 6 40 49 Melee 58 | . 38 20 Ram . | . . . Kick . | . . . Crush . | . . . Escape Stasis . | . . . Rewire . | . . . Trap . | . . . Miscellaneous . | . . . Route ------- -11/Scrapyard -10/Materials (discovered 5 exits: [*Mat x3] / [*Min] / [*Sub]) -10/Subcaves (discovered 1 exit: [*Rec]) History --------- Turn | Location | Event 51 | -11/Scrapyard | Discovered new exit (range 15) 142 | -11/Scrapyard | Entered Materials 302 | -10/Materials | Build established: Mutant 342 | -10/Materials | Discovered new exit (range 7) 818 | -10/Materials | Discovered new exit (range 15) 1172 | -10/Materials | Discovered new exit (range 15) 1542 | -10/Materials | Discovered new exit (range 8) 1823 | -10/Materials | Discovered new exit (range 8) 1837 | -10/Materials | Entered Subcaves 1837 | -10/Subcaves | Accompanied by 1 ally 2062 | -10/Subcaves | Ambushed by swarm of Subdwellers 2143 | -10/Subcaves | Core integrity fell below 50% 2153 | -10/Subcaves | Lost 4 allies 2173 | -10/Subcaves | Lost 5 parts (1p2n1u1w) 2364 | -10/Subcaves | Shifting Twisted Machinery released Battle Rifle 2368 | -10/Subcaves | Shifting Twisted Machinery released Sub. Laser 2415 | -10/Subcaves | Shifting Twisted Machinery released Riot Gun 2420 | -10/Subcaves | Shifting Twisted Machinery released Sub. Laser 2827 | -10/Subcaves | Core integrity fell below 20% 2832 | -10/Subcaves | Discovered new exit (range 14) 3069 | -10/Subcaves | Shifting Twisted Machinery released Sub. Beam Cannon 3084 | -10/Subcaves | Shifting Twisted Machinery released Battle Rifle 3140 | -10/Subcaves | Learned Materials emergency access door positions 3440 | -10/Subcaves | Destroyed by RQ-Q8W(R) with Subdweller Machine Gun Last Messages --------------- 03303_ Sneak attack on ID-XFV(R). 03303_ ID-XFV(R) system offline. 03305_ Sneak attack on ID-XFV(R). 03305_ ID-XFV(R) system offline. 03306_ Sneak attack on ID-XFV(R). 03306_ ID-XFV(R) system offline. 03308_ Sneak attack on ID-XFV(R). 03308_ ID-XFV(R) system offline. 03314_ System corrupted: Heat flow error (+205). 03319_ Sub. Optics shoots sparks and powers down. 03325_ Dropped Broken Sub. Optics. 03381_ System corrupted: Matter fused (-6). 03415_ System corrupted: Matter fused (-9). 03438_ Jacked RQ-Q8W(R)... >>parse_system Reading system data... 03440_ Jacked RQ-Q8W(R)... 03440_ Command string: force(JAM) 03440_ No effect. Map ----- +----------------------------------------------------+ | ?????????????????????????????????????????????????? | | ?????????????????????????????????????????????????? | | ?????????????????????????????????????????????????? | | ?????????????????????????????????????????????????? | | ?????????????????????????????????????????????????? | | ?????????????????????????????????????????????????? | | ?????????????????????????????????????????????????? | | ?????????????????????????????????????????????????? | | ?????????????????????????????????????????????????? | | ?????????????????????????????????????????????????? | | ?????????????????????????????????????????????????? | | ?????????????????????????????? ??????????????????? | | ?????????????????????????????? #????????????????? | | ????????????????????????????## ?????????????? | | ???????????????????????????? ????????????? | | ???????????????????????????? ?????????????? | | ???????????????????????????? #?????????????? | | ????????????????????????????# #?????????????? | | ???????????????????????????? #?????????????? | | ????????????????????????????# #?????????????? | | ???????????????????????????## #?????????????? | | ???????????????????????????# #?????????????? | | ???????????????????????????# ##????????????? | | ??????????????????????###### #????????????? | | ??????????????????????? R<## #?????????????? | | ????????????????????????#@#" #????????????????? | | ????????????????????????# #????????????????? | | ????????????????????????# #< ##???????????????? | | ????????????????????????### #???????????????? | | ??????????????????????????### ##??????????????? | | ????????????????????????????## ##?????????????? | | ?????????????????????????????# ##????????????? | | ?????????????????????????????# ## ###??????????? | | ?????????????????????????????##### ##?????????? | | ?????????????????????????????????### #?????????? | | ?????????????????????????????????# ##?????????? | | ###??????????????????????????????## #??????????? | | ##????????????????????????????### #??????????? | | #??####??????????????????????# ##??????????? | | ###" ##?????????????????????# #??????????? | | " """"#?????????????????????# # ###??????????? | | "#??????????????????????????# ##????????????? | | ##????????????????????????## #?????????????? | | "##???????????????????????# #?????????????? | | # """#####???????????????????# ##?????????????? | | ## "" ##??????????????###### #?????????????? | | ?##"" #?????????????## ## #####?????????? | | ###### """ #?????????????# " # ## #?????????? | | ""###""" " #?????????????# & " # #?????????? | | "" """ " ##?###?????????# " & #?????????? | +----------------------------------------------------+ Best States ------------- Heat Dissipation 25 Energy Generation 14 Energy Capacity 280 Matter Stores 300 Matter Capacity 300 Sight Range 21 Terrain Scan Range 16 Terrain Scan Density 10 Evasion (%) 40 Recoil Reduction 2 Item Schematics ----------------- None Robot Schematics ------------------ None Fabricated ------------ Nothing Alien Tech Used ----------------- None Achievements -------------- Backstab Challenges ------------ None Game ------ Seed TiamatTransportPick Manual? 0 Play Time 00:40:09 Cumulative 31.1 hours Start 2024.06.13 @ 01:04:56 End 2024.06.13 @ 01:40:37 Sessions 1 Manual Loads 0 Difficulty Rogue Special Mode None Game No. 31 Rogue 31 Adventurer 0 Explorer 0 Win Type - Total 0 Types 0/0/0/0/0/0/0/0/0 Lore% 26 Gallery% 29 Achievement% 26 Wizard Run 0 Options --------- Layout 1 ASCII 0 Keyboard 1 Movement Arrows Keybinds 0 Fullscreen 2 Font 24/Smallcaps Map View 50x35 Zoom Use 0% Tactical HUD 1 Map Filters NONE Filters NONE Steam 1 RUN: 8348c9d1-50b2-4609-8307-f0647a0d71e2